fUSD/lending_fUSD_20240804
["ID","MTS","AMOUNT","RATE_DAILY","PERIOD"]
[334166771,1722805902376,-500.0,0.00023342,9]
[334166772,1722805902386,-1044.8,0.00023342,9]
[334166773,1722805902395,-500.0,0.00023342,9]
[334166774,1722805902405,-500.0,0.00023342,9]
[334166775,1722805902415,-500.0,0.00023342,9]
[334166776,1722805902424,-500.0,0.00023342,9]
[334166777,1722805902433,-846.33,0.00023342,9]
[334166778,1722805902443,-500.0,0.00023342,9]
[334166779,1722805902452,-765.93,0.00023342,9]
[334166780,1722805902461,-513.77,0.00023342,9]
[334166781,1722805902471,-500.0,0.00023342,9]
[334166782,1722805902481,-823.05,0.00023342,9]
[334166783,1722805902490,-500.0,0.00023342,9]
[334166784,1722805902500,-500.0,0.00023342,9]
[334166785,1722805902509,-500.0,0.00023342,9]
[334166786,1722805902519,-547.773882,0.00023342,9]
[334166787,1722805902528,-500.0,0.00023342,9]
[334166788,1722805902538,-848.47,0.00023342,9]
[334166789,1722805902547,-1092.87,0.00023342,9]
[334166790,1722805902556,-500.0,0.00023342,9]
[334166791,1722805902566,-500.0,0.00023342,9]
[334166792,1722805902576,-500.0,0.00023342,9]
[334166793,1722805902589,-500.0,0.00023342,9]
[334166794,1722805902599,-500.0,0.00023342,9]
[334166795,1722805902608,-500.0,0.00023342,9]
[334166796,1722805902617,-500.0,0.00023342,9]
[334166797,1722805902627,-500.0,0.00023342,9]
[334166798,1722805902636,-500.0,0.00023342,9]
[334166799,1722805902646,-791.06,0.00023342,9]
[334166800,1722805902657,-500.0,0.00023342,9]
[334166801,1722805902667,-500.0,0.00023342,9]
[334166802,1722805902676,-500.0,0.00023342,9]
[334166803,1722805902686,-500.0,0.00023342,9]
[334166804,1722805902695,-974.71,0.00023342,9]
[334166805,1722805902705,-500.0,0.00023342,9]
[334166806,1722805902714,-500.0,0.00023342,9]
[334166807,1722805902723,-500.0,0.00023342,9]
[334166808,1722805902733,-500.0,0.00023342,9]
[334166809,1722805902743,-500.0,0.00023342,9]
[334166810,1722805902754,-1304.52,0.00023342,9]
[334166811,1722805902764,-734.42,0.00023342,9]
[334166812,1722805902774,-190.58629449,0.00023342,9]
[334166813,1722805902783,-500.0,0.00023342,9]
[334166814,1722805902793,-500.0,0.00023342,9]
[334166815,1722805902802,-1490.63,0.00023342,9]
[334166816,1722805902812,-651.99,0.00023342,9]
[334166817,1722805902821,-500.0,0.00023342,9]
[334166818,1722805902830,-1187.98,0.00023342,9]
[334166819,1722805902839,-500.0,0.00023342,9]
[334166820,1722805902849,-500.0,0.00023342,9]
[334166821,1722805902858,-500.0,0.00023342,9]
[334166822,1722805902868,-500.0,0.00023342,9]
[334166823,1722805902877,-592.42988907,0.00023342,9]
[334166824,1722805902887,-500.0,0.00023342,9]
[334166825,1722805902896,-500.0,0.00023342,9]
[334166826,1722805902906,-500.0,0.00023342,9]
[334166827,1722805902915,-524.60798772,0.00023342,9]
[334166828,1722805902924,-1274.28,0.00023342,9]
[334166829,1722805902934,-500.0,0.00023342,9]
[334166830,1722805902943,-1378.03,0.00023342,9]
[334166831,1722805902952,-500.0,0.00023342,9]
[334166832,1722805902966,-500.0,0.00023342,9]
[334166833,1722805902986,-500.0,0.00023342,9]
[334166834,1722805903001,-500.0,0.00023342,9]
[334166835,1722805903019,-979.35,0.00023342,9]
[334166836,1722805903038,-842.17,0.00023342,9]
[334166837,1722805903056,-500.0,0.00023342,9]
[334166838,1722805903074,-500.0,0.00023342,9]
[334166839,1722805903092,-642.36,0.00023342,9]
[334166840,1722805903106,-615.98,0.00023342,9]
[334166841,1722805903124,-500.0,0.00023342,9]
[334166842,1722805903144,-500.0,0.00023342,9]
[334166843,1722805903162,-500.0,0.00023342,9]
[334166844,1722805903177,-1264.35,0.00023342,9]
[334166845,1722805903197,-848.16,0.00023342,9]
[334166846,1722805903214,-500.0,0.00023342,9]
[334166847,1722805903231,-500.0,0.00023342,9]
[334166848,1722805903246,-500.0,0.00023342,9]
[334166849,1722805903261,-500.0,0.00023342,9]
[334166850,1722805903277,-500.0,0.00023342,9]
[334166851,1722805903292,-500.0,0.00023342,9]
[334166852,1722805903308,-500.0,0.00023342,9]
[334166853,1722805903325,-1209.12,0.00023342,9]
[334166854,1722805903341,-500.0,0.00023342,9]
[334166855,1722805903358,-500.0,0.00023342,9]
[334166856,1722805903375,-1010.12,0.00023342,7]
[334166857,1722805903392,-1074.05,0.00023342,9]
[334166858,1722805903408,-500.0,0.00023342,9]
[334166859,1722805903424,-500.0,0.00023342,9]
[334166860,1722805903439,-500.0,0.00023342,9]
[334166861,1722805903455,-2114.96,0.00023342,9]
[334166862,1722805903471,-500.0,0.00023342,9]
[334166863,1722805903487,-514.07,0.00023342,9]
[334166864,1722805903504,-500.0,0.00023342,9]
[334166865,1722805903520,-500.0,0.00023342,9]
[334166866,1722805903535,-1272.78,0.00023342,9]
[334166867,1722805903551,-640.2,0.00023342,9]
[334166868,1722805903566,-823.79,0.00023342,9]
[334166869,1722805903586,-500.0,0.00023342,9]
[334166870,1722805903603,-1252.42,0.00023342,9]
[334166871,1722805903620,-500.0,0.00023342,9]
[334166872,1722805903635,-991.28,0.00023342,9]
[334166873,1722805903659,-553.51,0.00023342,9]
[334166874,1722805903675,-500.0,0.00023342,9]
[334166875,1722805903691,-636.67,0.00023342,9]
[334166876,1722805903707,-500.0,0.00023342,9]
[334166877,1722805903722,-500.0,0.00023342,9]
[334166878,1722805903737,-500.0,0.00023342,9]
[334166879,1722805903753,-500.0,0.00023342,9]
[334166880,1722805903769,-500.0,0.00023342,9]
[334166881,1722805903785,-500.0,0.00023342,9]
[334166882,1722805903800,-189.49,0.00023342,9]
[334166883,1722805903816,-500.0,0.00023342,9]
[334166884,1722805903833,-500.0,0.00023342,9]
[334166885,1722805903848,-500.0,0.00023342,9]
[334166886,1722805903864,-500.0,0.00023342,9]
[334166887,1722805903880,-608.41,0.00023342,9]
[334166888,1722805903897,-632.04,0.00023342,9]
[334166889,1722805903912,-500.0,0.00023342,9]
[334166890,1722805903927,-1368.98,0.00023342,9]
[334166891,1722805903943,-500.0,0.00023342,9]
[334166892,1722805903959,-500.0,0.00023342,9]
[334166893,1722805903975,-500.0,0.00023342,9]
[334166894,1722805903992,-500.0,0.00023342,9]
[334166895,1722805904007,-500.0,0.00023342,9]
[334166896,1722805904022,-570.88,0.00023342,9]
[334166897,1722805904037,-1262.61,0.00023342,9]
[334166898,1722805904053,-500.0,0.00023342,9]
[334166899,1722805904070,-500.0,0.00023342,9]
[334166900,1722805904086,-757.81,0.00023342,9]
[334166901,1722805904102,-500.0,0.00023342,9]
[334166902,1722805904118,-542.41,0.00023342,9]
[334166903,1722805904135,-500.0,0.00023342,9]
[334166904,1722805904156,-500.0,0.00023342,9]
[334166905,1722805904172,-299.77,0.00023342,9]
[334166906,1722805904186,-500.0,0.00023342,9]
[334166907,1722805904203,-720.06,0.00023342,9]
[334166908,1722805904219,-500.0,0.00023342,9]
[334166909,1722805904235,-500.0,0.00023342,9]
[334166910,1722805904249,-500.0,0.00023342,9]
[334166911,1722805904264,-500.0,0.00023342,9]
[334166912,1722805904280,-500.0,0.00023342,9]
[334166913,1722805904295,-500.0,0.00023342,9]
[334166914,1722805904310,-500.0,0.00023342,9]
[334166915,1722805904326,-535.21,0.00023342,9]
[334166916,1722805904349,-654.87,0.00023342,9]
[334166917,1722805904365,-800.42,0.00023342,9]
[334166918,1722805904381,-500.0,0.00023342,9]
[334166919,1722805904400,-599.25,0.00023342,9]
[334166920,1722805904416,-500.0,0.00023342,9]
[334166921,1722805904431,-500.0,0.00023342,9]
[334166922,1722805904446,-500.0,0.00023342,9]
[334166923,1722805904462,-500.0,0.00023342,9]
[334166924,1722805904478,-819.66,0.00023342,9]
[334166925,1722805904494,-555.34,0.00023342,9]
[334166926,1722805904511,-1020.58,0.00023342,9]
[334166927,1722805904527,-500.0,0.00023342,9]
[334166928,1722805904542,-759.17,0.00023342,9]
[334166929,1722805904558,-576.69,0.00023342,9]
[334166930,1722805904574,-500.0,0.00023342,9]
[334166931,1722805904593,-500.0,0.00023342,9]
[334166932,1722805904608,-500.0,0.00023342,9]
[334166933,1722805904624,-500.0,0.00023342,9]
[334166934,1722805904643,-533.04,0.00023342,9]
[334166935,1722805904658,-500.0,0.00023342,9]
[334166936,1722805904675,-500.0,0.00023342,9]
[334166937,1722805904690,-500.0,0.00023342,9]
[334166938,1722805904706,-500.0,0.00023342,9]
[334166939,1722805904721,-500.0,0.00023342,9]
[334166940,1722805904735,-898.39,0.00023342,9]
[334166941,1722805904750,-500.0,0.00023342,9]
[334166942,1722805904765,-562.71,0.00023342,9]
[334166943,1722805904780,-500.0,0.00023342,9]
[334166944,1722805904796,-500.0,0.00023342,9]
[334166945,1722805904810,-500.0,0.00023342,9]
[334166946,1722805904825,-314.15,0.00023342,9]
[334166947,1722805904841,-546.8,0.00023342,9]
[334166948,1722805904855,-500.0,0.00023342,9]
[334166949,1722805904870,-500.0,0.00023342,9]
[334166950,1722805904887,-500.0,0.00023342,9]
[334166951,1722805904902,-500.0,0.00023342,9]
[334166952,1722805904917,-500.0,0.00023342,9]
[334166953,1722805904934,-856.54,0.00023342,9]
[334166954,1722805904949,-500.0,0.00023342,9]
[334166955,1722805904964,-865.8,0.00023342,9]
[334166956,1722805904979,-500.0,0.00023342,9]
[334166957,1722805904995,-500.0,0.00023342,9]
[334166958,1722805905010,-500.0,0.00023342,9]
[334166959,1722805905025,-500.0,0.00023342,9]
[334166960,1722805905041,-500.0,0.00023342,9]
[334166961,1722805905056,-500.0,0.00023342,9]
[334166962,1722805905072,-500.0,0.00023342,9]
[334166963,1722805905088,-500.0,0.00023342,9]
[334166964,1722805905364,-500.0,0.00023342,9]
[334166965,1722805905389,-1183.88,0.00023342,9]
[334166966,1722805905399,-500.0,0.00023342,9]
[334166967,1722805905409,-501.96021965,0.00023342,9]
[334166968,1722805905419,-500.0,0.00023342,9]
[334166969,1722805905428,-500.0,0.00023342,9]
[334166970,1722805905439,-150.0,0.00023342,9]
[334166971,1722805905449,-757.38,0.00023342,9]
[334166972,1722805905459,-750.87,0.00023342,9]
[334166973,1722805905468,-500.0,0.00023342,9]
[334166974,1722805905478,-500.0,0.00023342,9]
[334166975,1722805905488,-500.0,0.00023342,9]
[334166976,1722805905498,-500.0,0.00023342,9]
[334166977,1722805905507,-1516.62,0.00023342,9]
[334166978,1722805905516,-500.0,0.00023342,9]
[334166979,1722805905527,-500.0,0.00023342,9]
[334166980,1722805905536,-1355.06,0.00023342,9]
[334166981,1722805905546,-500.0,0.00023342,9]
[334166982,1722805905556,-752.11,0.00023342,9]
[334166983,1722805905566,-500.0,0.00023342,9]
[334166984,1722805905580,-476.43,0.00023342,9]
[334166985,1722805905588,-500.0,0.00023342,9]
[334166986,1722805905598,-500.0,0.00023342,9]
[334166987,1722805905607,-500.0,0.00023342,9]
[334166988,1722805905620,-500.0,0.00023342,9]
[334166989,1722805905629,-500.0,0.00023342,9]
[334166990,1722805905640,-500.0,0.00023342,9]
[334166991,1722805905651,-500.0,0.00023342,9]
[334166992,1722805905664,-500.0,0.00023342,9]
[334166993,1722805905674,-835.14,0.00023342,9]
[334166994,1722805905684,-500.0,0.00023342,9]
[334166995,1722805905694,-500.0,0.00023342,9]
[334166996,1722805905704,-500.0,0.00023342,9]
[334166997,1722805905714,-500.0,0.00023342,9]
[334166998,1722805905723,-500.0,0.00023342,9]
[334166999,1722805905733,-577.51,0.00023342,9]
[334167000,1722805905742,-500.0,0.00023342,9]
[334167001,1722805905752,-604.55,0.00023342,9]
[334167002,1722805905761,-500.0,0.00023342,9]
[334167003,1722805905770,-500.0,0.00023342,9]
[334167004,1722805905781,-500.0,0.00023342,9]
[334167005,1722805905790,-543.66,0.00023342,9]
[334167006,1722805905800,-500.0,0.00023342,9]
[334167007,1722805905809,-1049.0,0.00023342,9]
[334167008,1722805905819,-595.85,0.00023342,9]
[334167009,1722805905828,-528.73729794,0.00023342,9]
[334167010,1722805905837,-820.31,0.00023342,9]
[334167011,1722805905846,-500.0,0.00023342,9]
[334167012,1722805905855,-881.32,0.00023342,9]
[334167013,1722805905865,-500.0,0.00023342,9]
[334167014,1722805905874,-500.0,0.00023342,9]
[334167015,1722805905883,-512.9,0.00023342,9]
[334167016,1722805905893,-500.0,0.00023342,9]
[334167017,1722805905903,-500.0,0.00023342,9]
[334167018,1722805905912,-500.0,0.00023342,9]
[334167019,1722805905923,-1320.82,0.00023342,9]
[334167020,1722805905932,-1317.26,0.00023342,9]
[334167021,1722805905942,-500.0,0.00023342,9]
[334167022,1722805905952,-247.90324173,0.00023342,9]
[334167023,1722805905961,-500.0,0.00023342,9]
[334167024,1722805905971,-500.0,0.00023342,9]
[334167025,1722805905980,-500.0,0.00023342,9]
[334167026,1722805905990,-500.0,0.00023342,9]
[334167027,1722805906000,-500.0,0.00023342,9]
[334167028,1722805906009,-500.0,0.00023342,9]
[334167029,1722805906018,-500.0,0.00023342,9]
[334167030,1722805906027,-500.0,0.00023342,9]
[334167031,1722805906038,-775.64,0.00023342,9]
[334167032,1722805906047,-500.0,0.00023342,9]
[334167033,1722805906057,-500.0,0.00023342,9]
[334167034,1722805906067,-731.67,0.00023342,9]
[334167035,1722805906076,-500.0,0.00023342,9]
[334167036,1722805906086,-500.0,0.00023342,9]
[334167037,1722805906095,-500.0,0.00023342,9]
[334167038,1722805906105,-500.0,0.00023342,9]
[334167039,1722805906115,-500.0,0.00023342,9]
[334167040,1722805906124,-500.0,0.00023342,9]
[334167041,1722805906133,-500.0,0.00023342,9]
[334167042,1722805906145,-500.0,0.00023342,9]
[334167043,1722805906155,-500.0,0.00023342,9]
[334167044,1722805906165,-1198.0,0.00023342,9]
[334167045,1722805906174,-653.66,0.00023342,9]
[334167046,1722805906183,-500.0,0.00023342,9]
[334167047,1722805906193,-508.48,0.00023342,9]
[334167048,1722805906202,-500.0,0.00023342,9]
[334167049,1722805906212,-588.48,0.00023342,9]
[334167050,1722805906221,-500.0,0.00023342,9]
[334167051,1722805906231,-500.0,0.00023342,9]
[334167052,1722805906240,-616.13,0.00023342,9]
[334167053,1722805906249,-500.0,0.00023342,9]
[334167054,1722805906259,-500.0,0.00023342,9]
[334167055,1722805906269,-500.0,0.00023342,9]
[334167056,1722805906278,-500.0,0.00023342,9]
[334167057,1722805906287,-506.79,0.00023342,9]
[334167058,1722805906296,-500.0,0.00023342,9]
[334167059,1722805906305,-907.97,0.00023342,9]
[334167060,1722805906314,-923.23,0.00023342,9]
[334167061,1722805906324,-500.0,0.00023342,9]
[334167062,1722805906334,-500.0,0.00023342,9]
[334167063,1722805906343,-500.0,0.00023342,9]
[334167064,1722805906353,-500.0,0.00023342,9]
[334167065,1722805906362,-1158.33,0.00023342,9]
[334167066,1722805906372,-500.0,0.00023342,9]
[334167067,1722805906382,-500.0,0.00023342,9]
[334167068,1722805906394,-500.0,0.00023342,9]
[334167069,1722805906404,-500.0,0.00023342,9]
[334167070,1722805906414,-1060.73,0.00023342,9]
[334167071,1722805906423,-500.0,0.00023342,9]
[334167072,1722805906433,-500.0,0.00023342,9]
[334167073,1722805906443,-500.0,0.00023342,9]
[334167074,1722805906452,-500.0,0.00023342,9]
[334167075,1722805906462,-702.62,0.00023342,9]
[334167076,1722805906471,-500.0,0.00023342,9]
[334167077,1722805906480,-511.78,0.00023342,9]
[334167078,1722805906489,-500.0,0.00023342,9]
[334167079,1722805906499,-500.0,0.00023342,9]
[334167080,1722805906508,-500.0,0.00023342,9]
[334167081,1722805906517,-500.0,0.00023342,9]
[334167082,1722805906526,-500.0,0.00023342,9]
[334167083,1722805906535,-508.8,0.00023342,9]
[334167084,1722805906545,-500.0,0.00023342,9]
[334167085,1722805906554,-1106.81,0.00023342,9]
[334167086,1722805906563,-500.0,0.00023342,9]
[334167087,1722805906572,-500.0,0.00023342,9]
[334167088,1722805906583,-1220.67,0.00023342,9]
[334167089,1722805906592,-688.53,0.00023342,9]
[334167090,1722805906602,-500.0,0.00023342,9]
[334167091,1722805906612,-605.88,0.00023342,9]
[334167092,1722805906623,-500.0,0.00023342,9]
[334167093,1722805906633,-944.03,0.00023342,9]
[334167094,1722805906645,-1410.69,0.00023342,9]
[334167095,1722805906654,-591.28264362,0.00023342,9]
[334167096,1722805906666,-500.0,0.00023342,9]
[334167097,1722805906676,-500.0,0.00023342,9]
[334167098,1722805906686,-500.0,0.00023342,9]
[334167099,1722805906695,-500.0,0.00023342,9]
[334167100,1722805906704,-500.0,0.00023342,9]
[334167101,1722805906714,-500.0,0.00023342,9]
[334167102,1722805906723,-500.0,0.00023342,9]
[334167103,1722805906732,-500.0,0.00023342,9]
[334167104,1722805906742,-697.02,0.00023342,9]
[334167105,1722805906751,-200.0,0.00023342,7]
[334167106,1722805906760,-1251.97,0.00023342,9]
[334167107,1722805906769,-500.0,0.00023342,9]
[334167108,1722805906779,-500.0,0.00023342,9]
[334167109,1722805906789,-500.0,0.00023342,9]
[334167110,1722805906798,-500.0,0.00023342,9]
[334167111,1722805906808,-500.0,0.00023342,9]
[334167112,1722805906817,-500.0,0.00023342,9]
[334167113,1722805906826,-750.94,0.00023342,9]
[334167114,1722805906835,-500.0,0.00023342,9]
[334167115,1722805906844,-500.0,0.00023342,9]
[334167116,1722805906854,-500.0,0.00023342,9]
[334167117,1722805906863,-500.0,0.00023342,9]
[334167118,1722805906873,-500.0,0.00023342,9]
[334167119,1722805906882,-947.68,0.00023342,9]
[334167120,1722805906894,-500.0,0.00023342,9]
[334167121,1722805906903,-958.7,0.00023342,9]
[334167122,1722805906913,-500.0,0.00023342,9]
[334167123,1722805906922,-500.0,0.00023342,9]
[334167124,1722805906932,-500.0,0.00023342,9]
[334167125,1722805906942,-500.0,0.00023342,9]
[334167126,1722805906951,-500.0,0.00023342,9]
[334167127,1722805906960,-500.0,0.00023342,9]
[334167128,1722805906970,-1284.92,0.00023342,9]
[334167129,1722805906979,-500.0,0.00023342,9]
[334167130,1722805906988,-500.0,0.00023342,9]
[334167131,1722805906999,-500.0,0.00023342,9]
[334167132,1722805907008,-696.32,0.00023342,9]
[334167133,1722805907017,-500.0,0.00023342,9]
[334167134,1722805907027,-604.31,0.00023342,9]
[334167135,1722805907036,-553.86,0.00023342,9]
[334167136,1722805907046,-500.0,0.00023342,9]
[334167137,1722805907055,-500.0,0.00023342,9]
[334167138,1722805907064,-500.0,0.00023342,9]
[334167139,1722805907073,-500.0,0.00023342,9]
[334167140,1722805907083,-500.0,0.00023342,9]
[334167141,1722805907092,-880.04,0.00023342,9]
[334167142,1722805907101,-498.0,0.00023342,9]
[334167143,1722805907111,-500.0,0.00023342,9]
[334167144,1722805907121,-1586.21,0.00023342,9]
[334167145,1722805907131,-500.0,0.00023342,9]
[334167146,1722805907142,-500.0,0.00023342,9]
[334167147,1722805907157,-500.0,0.00023342,9]
[334167148,1722805907167,-500.0,0.00023342,9]
[334167149,1722805907176,-500.0,0.00023342,9]
[334167150,1722805907185,-597.03,0.00023342,9]
[334167151,1722805907194,-528.32,0.00023342,9]
[334167152,1722805907203,-662.94,0.00023342,9]
[334167153,1722805907212,-500.0,0.00023342,9]
[334167154,1722805907222,-500.0,0.00023342,9]
[334167155,1722805907231,-500.0,0.00023342,9]
[334167156,1722805907241,-500.0,0.00023342,2]
[334167157,1722805907250,-500.0,0.00023342,9]
[334167158,1722805907261,-1119.53,0.00023342,9]
[334167159,1722805907270,-717.42,0.00023342,9]
[334167160,1722805907280,-692.71,0.00023342,9]
[334167161,1722805907289,-500.0,0.00023342,9]
[334167162,1722805907299,-625.21,0.00023342,9]
[334167163,1722805907308,-500.0,0.00023342,9]
[334167164,1722805907317,-500.0,0.00023342,9]
[334167165,1722805907327,-799.08,0.00023342,9]
[334167166,1722805907336,-500.0,0.00023342,9]
[334167167,1722805907346,-1250.85,0.00023342,9]
[334167168,1722805907355,-500.0,0.00023342,9]
[334167169,1722805907364,-500.0,0.00023342,9]
[334167170,1722805907373,-500.0,0.00023342,9]
[334167171,1722805907383,-500.0,0.00023342,9]
[334167172,1722805907395,-500.0,0.00023342,9]
[334167173,1722805907404,-500.0,0.00023342,9]
[334167174,1722805907413,-500.0,0.00023342,9]
[334167175,1722805907423,-711.47,0.00023342,9]
[334167176,1722805907432,-500.0,0.00023342,9]
[334167177,1722805907442,-554.17,0.00023342,9]
[334167178,1722805907451,-500.0,0.00023342,9]
[334167179,1722805907460,-500.0,0.00023342,9]
[334167180,1722805907470,-500.0,0.00023342,9]
[334167181,1722805907480,-1125.3,0.00023342,9]
[334167182,1722805907491,-977.26,0.00023342,9]
[334167183,1722805907502,-500.0,0.00023342,9]
[334167184,1722805907511,-219.28,0.00023342,9]
[334167185,1722805907520,-500.0,0.00023342,9]
[334167186,1722805907533,-650.86,0.00023342,9]
[334167187,1722805907543,-500.0,0.00023342,9]
[334167188,1722805907552,-552.74,0.00023342,9]
[334167189,1722805907562,-500.0,0.00023342,9]
[334167190,1722805907572,-598.03,0.00023342,9]
[334167191,1722805907585,-500.0,0.00023342,9]
[334167192,1722805907595,-500.0,0.00023342,9]
[334167193,1722805907605,-766.92,0.00023342,9]
[334167194,1722805907615,-1029.2,0.00023342,9]
[334167195,1722805907624,-500.0,0.00023342,9]
[334167196,1722805907634,-500.0,0.00023342,9]
[334167197,1722805907646,-500.0,0.00023342,9]
[334167198,1722805907656,-1070.84,0.00023342,9]
[334167199,1722805907666,-500.0,0.00023342,9]
[334167200,1722805907676,-1025.12,0.00023342,9]
[334167201,1722805907685,-541.86313256,0.00023342,9]
[334167202,1722805907695,-500.0,0.00023342,9]
[334167203,1722805907704,-1123.65,0.00023342,9]
[334167204,1722805907714,-500.0,0.00023342,9]
[334167205,1722805907724,-935.9,0.00023342,9]
[334167206,1722805907734,-503.18,0.00023342,9]
[334167207,1722805907744,-500.0,0.00023342,9]
[334167208,1722805907754,-967.76,0.00023342,9]
[334167209,1722805907764,-683.02,0.00023342,9]
[334167210,1722805907773,-500.0,0.00023342,9]
[334167211,1722805907782,-989.88,0.00023342,9]
[334167212,1722805907791,-500.0,0.00023342,9]
[334167213,1722805907801,-500.0,0.00023342,9]
[334167214,1722805907813,-500.0,0.00023342,9]
[334167215,1722805907822,-500.0,0.00023342,9]
[334167216,1722805907832,-500.0,0.00023342,9]
[334167217,1722805907841,-785.29,0.00023342,9]
[334167218,1722805907851,-665.55,0.00023342,9]
[334167219,1722805907861,-1317.39,0.00023342,9]
[334167220,1722805907870,-707.71,0.00023342,9]
[334167221,1722805907879,-500.0,0.00023342,9]
[334167222,1722805907889,-500.0,0.00023342,9]
[334167223,1722805907899,-1079.16,0.00023342,9]
[334167224,1722805907908,-615.98,0.00023342,9]
[334167225,1722805907917,-609.26,0.00023342,9]
[334167226,1722805907926,-500.0,0.00023342,9]
[334167227,1722805907936,-500.0,0.00023342,9]
[334167228,1722805907946,-500.0,0.00023342,9]
[334167229,1722805907955,-791.87,0.00023342,9]
[334167230,1722805907965,-1134.62,0.00023342,9]
[334167231,1722805907975,-500.0,0.00023342,9]
[334167232,1722805907984,-500.0,0.00023342,9]
[334167233,1722805907993,-500.0,0.00023342,9]
[334167234,1722805908002,-243.27181729,0.00023342,9]
[334167235,1722805908012,-500.0,0.00023342,9]
[334167236,1722805908021,-500.0,0.00023342,9]
[334167237,1722805908032,-684.59,0.00023342,9]
[334167238,1722805908042,-500.0,0.00023342,9]
[334167239,1722805908052,-500.0,0.00023342,9]
[334167240,1722805908062,-500.0,0.00023342,9]
[334167241,1722805908072,-807.51,0.00023342,9]
[334167242,1722805908082,-1911.59,0.00023342,9]
[334167243,1722805908091,-500.0,0.00023342,9]
[334167244,1722805908101,-500.0,0.00023342,9]
[334167245,1722805908111,-500.0,0.00023342,9]
[334167246,1722805908123,-500.0,0.00023342,9]
[334167247,1722805908133,-500.0,0.00023342,9]
[334167248,1722805908143,-500.0,0.00023342,9]
[334167249,1722805908153,-767.21,0.00023342,9]
[334167250,1722805908163,-3835.47,0.00023342,9]
[334167251,1722805908173,-696.93,0.00023342,9]
[334167252,1722805908183,-500.0,0.00023342,9]
[334167253,1722805908192,-1057.28,0.00023342,9]
[334167254,1722805908401,-948.14,0.00023342,9]
[334167255,1722805908411,-970.01,0.00023342,9]
[334167256,1722805908421,-500.0,0.00023342,9]
[334167257,1722805908430,-1408.64,0.00023342,9]
[334167258,1722805908440,-1514.72,0.00023342,9]
[334167259,1722805908449,-901.07,0.00023342,9]
[334167260,1722805908460,-500.0,0.00023342,9]
[334167261,1722805908469,-500.0,0.00023342,9]
[334167262,1722805908479,-500.0,0.00023342,9]
[334167263,1722805908490,-500.0,0.00023342,9]
[334167264,1722805908503,-1322.2,0.00023342,9]
[334167265,1722805908515,-523.43,0.00023342,9]
[334167266,1722805908524,-500.0,0.00023342,9]
[334167267,1722805908534,-792.65,0.00023342,9]
[334167268,1722805908545,-1221.82,0.00023342,9]
[334167269,1722805908555,-1697.88,0.00023342,9]
[334167270,1722805908564,-500.0,0.00023342,9]